[Event "Early-Titled-Tuesday-Blitz-September-05-2023"]
[Site "Chess.com"]
[Date "2023.09.05"]
[Round "11"]
[White "Shield12"]
[Black "nihalsarin"]
[Result "0-1"]
[WhiteElo "2971"]
[BlackElo "3142"]
[TimeControl "180+1"]
[EndTime "10:07:20 PDT"]
[Termination "nihalsarin won by resignation"]

1. e4 {[%clk 0:03:00.9]} 1... g6 {[%clk 0:02:59.1]} 2. d4 {[%clk 0:03:00.6]}
2... Bg7 {[%clk 0:02:59.7]} 3. Nf3 {[%clk 0:03:01.1]} 3... d6 {[%clk 0:03:00.2]}
4. Bc4 {[%clk 0:03:01.4]} 4... Nf6 {[%clk 0:02:57.5]} 5. Qe2 {[%clk 0:03:01.4]}
5... O-O {[%clk 0:02:57.8]} 6. e5 {[%clk 0:03:01.9]} 6... dxe5 {[%clk
0:02:57.8]} 7. dxe5 {[%clk 0:03:02.8]} 7... Nd5 {[%clk 0:02:58.6]} 8. O-O {[%clk
0:03:03.4]} 8... Bg4 {[%clk 0:02:55]} 9. h3 {[%clk 0:02:49.4]} 9... Bxf3 {[%clk
0:02:55]} 10. Qxf3 {[%clk 0:02:50.3]} 10... c6 {[%clk 0:02:55.7]} 11. Re1 {[%clk
0:02:47.6]} 11... e6 {[%clk 0:02:54.6]} 12. Nd2 {[%clk 0:02:38.8]} 12... Nd7
{[%clk 0:02:54]} 13. Qg3 {[%clk 0:02:38.6]} 13... b5 {[%clk 0:02:49.5]} 14. Bb3
{[%clk 0:02:29]} 14... a5 {[%clk 0:02:44]} 15. Nf3 {[%clk 0:02:21.9]} 15... Qc7
{[%clk 0:02:35]} 16. a4 {[%clk 0:02:15.1]} 16... bxa4 {[%clk 0:02:27.9]} 17.
Bxa4 {[%clk 0:02:00.1]} 17... Nc5 {[%clk 0:02:27.7]} 18. Qh4 {[%clk 0:01:57.1]}
18... Rab8 {[%clk 0:02:17.7]} 19. c4 {[%clk 0:01:49.9]} 19... Ne7 {[%clk
0:01:49]} 20. Bc2 {[%clk 0:01:46.8]} 20... Nf5 {[%clk 0:01:40.5]} 21. Bxf5
{[%clk 0:01:46.5]} 21... exf5 {[%clk 0:01:41.4]} 22. Bh6 {[%clk 0:01:47.1]}
22... Ne6 {[%clk 0:01:32]} 23. Bxg7 {[%clk 0:01:42.7]} 23... Kxg7 {[%clk
0:01:32.9]} 24. Ng5 {[%clk 0:01:37]} 24... Nxg5 {[%clk 0:01:26.3]} 25. Qxg5
{[%clk 0:01:37.9]} 25... Qd8 {[%clk 0:01:17.7]} 26. Qxd8 {[%clk 0:01:21.9]}
26... Rfxd8 {[%clk 0:01:18.6]} 27. Re2 {[%clk 0:01:22.8]} 27... Ra8 {[%clk
0:01:01.2]} 28. e6 {[%clk 0:01:18.2]} 28... Re8 {[%clk 0:00:37.9]} 29. e7 {[%clk
0:01:17.7]} 29... Kf6 {[%clk 0:00:27.6]} 30. b4 {[%clk 0:01:09.6]} 30... Rxe7
{[%clk 0:00:15.8]} 31. Rxe7 {[%clk 0:00:29.1]} 31... Kxe7 {[%clk 0:00:16.7]} 32.
bxa5 {[%clk 0:00:25.7]} 32... Kd6 {[%clk 0:00:16.8]} 33. f4 {[%clk 0:00:18.8]}
33... Kc5 {[%clk 0:00:17.3]} 34. Ra4 {[%clk 0:00:18.6]} 34... Kd4 {[%clk
0:00:18.1]} 35. Kf2 {[%clk 0:00:16.8]} 35... Ra6 {[%clk 0:00:16.1]} 36. Ke2
{[%clk 0:00:12.7]} 36... Kc3 {[%clk 0:00:16.3]} 37. Ke3 {[%clk 0:00:09.7]} 37...
c5 {[%clk 0:00:15.6]} 38. g4 {[%clk 0:00:07.3]} 38... Kb3 {[%clk 0:00:14.9]} 39.
Ra1 {[%clk 0:00:07.3]} 39... Kxc4 {[%clk 0:00:14]} 40. gxf5 {[%clk 0:00:07.7]}
40... gxf5 {[%clk 0:00:14.9]} 41. Rc1+ {[%clk 0:00:05.4]} 41... Kb4 {[%clk
0:00:14.8]} 42. Rb1+ {[%clk 0:00:05.7]} 42... Kxa5 {[%clk 0:00:10.5]} 43. Kd3
{[%clk 0:00:05.8]} 43... Rb6 {[%clk 0:00:11.1]} 44. Ra1+ {[%clk 0:00:04.8]}
44... Kb5 {[%clk 0:00:11.5]} 45. Ra7 {[%clk 0:00:04.9]} 45... Rh6 {[%clk
0:00:09.5]} 46. Rxf7 {[%clk 0:00:03.5]} 46... Rxh3+ {[%clk 0:00:10]} 47. Kc2
{[%clk 0:00:04.4]} 47... Rh5 {[%clk 0:00:06.6]} 48. Kc3 {[%clk 0:00:04.9]} 48...
Rh3+ {[%clk 0:00:07]} 49. Kc2 {[%clk 0:00:05.1]} 49... Kc4 {[%clk 0:00:07.8]}
50. Rxf5 {[%clk 0:00:05.3]} 50... Rh2+ {[%clk 0:00:08.6]} 51. Kd1 {[%clk
0:00:04.8]} 51... h5 {[%clk 0:00:09.2]} 52. Rf8 {[%clk 0:00:04.6]} 52... h4
{[%clk 0:00:05.9]} 53. f5 {[%clk 0:00:05.1]} 53... Kd5 {[%clk 0:00:06.6]} 54. f6
{[%clk 0:00:04.1]} 54... Ke6 {[%clk 0:00:06.5]} 55. Ke1 {[%clk 0:00:04.3]} 55...
h3 {[%clk 0:00:05.3]} 56. Kf1 {[%clk 0:00:03.6]} 56... Rc2 {[%clk 0:00:04]} 57.
Kg1 {[%clk 0:00:03.3]} 57... c4 {[%clk 0:00:04.6]} 58. Kh1 {[%clk 0:00:01.5]}
58... c3 {[%clk 0:00:04.9]} 59. f7 {[%clk 0:00:02]} 59... Ke7 {[%clk 0:00:04.9]}
60. Re8+ {[%clk 0:00:02.2]} 60... Kxf7 {[%clk 0:00:05.4]} 61. Rc8 {[%clk
0:00:02.7]} 61... Ke6 {[%clk 0:00:05.7]} 62. Kg1 {[%clk 0:00:02.1]} 62... Kd5
{[%clk 0:00:06.3]} 63. Kf1 {[%clk 0:00:02.6]} 63... Kd4 {[%clk 0:00:07]} 64.
Rd8+ {[%clk 0:00:01.8]} 64... Kc4 {[%clk 0:00:07.5]} 65. Rh8 {[%clk 0:00:02.7]}
65... Rd2 {[%clk 0:00:07.2]} 66. Ke1 {[%clk 0:00:02.1]} 66... h2 {[%clk
0:00:07.3]} 67. Rh3 {[%clk 0:00:02.5]} 67... Rg2 {[%clk 0:00:07.2]} 68. Kf1
{[%clk 0:00:02.5]} 68... Rg1+ {[%clk 0:00:07.7]} 69. Kf2 {[%clk 0:00:03.4]}
69... h1=Q {[%clk 0:00:08.6]} 0-1

[Event "Early-Titled-Tuesday-Blitz-September-05-2023"]
[Site "Chess.com"]
[Date "2023.09.05"]
[Round "11"]
[White "Vanina1989"]
[Black "FREDERICKtheMATE"]
[Result "1-0"]
[WhiteElo "2722"]
[BlackElo "2547"]
[TimeControl "180+1"]
[EndTime "10:08:16 PDT"]
[Termination "Vanina1989 won by checkmate"]

1. d4 {[%clk 0:02:59.2]} 1... Nf6 {[%clk 0:02:59]} 2. c4 {[%clk 0:02:58.9]} 2...
e6 {[%clk 0:02:59.4]} 3. Nf3 {[%clk 0:02:58.4]} 3... d5 {[%clk 0:02:59.5]} 4.
Nc3 {[%clk 0:02:58.1]} 4... Be7 {[%clk 0:02:57.4]} 5. Bf4 {[%clk 0:02:57.1]}
5... O-O {[%clk 0:02:57.5]} 6. e3 {[%clk 0:02:57.5]} 6... b6 {[%clk 0:02:57.6]}
7. Bd3 {[%clk 0:02:56.1]} 7... dxc4 {[%clk 0:02:56.8]} 8. Bxc4 {[%clk
0:02:56.5]} 8... Ba6 {[%clk 0:02:57]} 9. Bxa6 {[%clk 0:02:56.2]} 9... Nxa6
{[%clk 0:02:57.7]} 10. Qa4 {[%clk 0:02:56.4]} 10... Nb4 {[%clk 0:02:57.2]} 11.
O-O {[%clk 0:02:56.6]} 11... c5 {[%clk 0:02:57.2]} 12. dxc5 {[%clk 0:02:55]}
12... Bxc5 {[%clk 0:02:57.7]} 13. Rfd1 {[%clk 0:02:53.6]} 13... Qe7 {[%clk
0:02:56.7]} 14. Bg5 {[%clk 0:02:47.9]} 14... h6 {[%clk 0:02:53]} 15. Bxf6 {[%clk
0:02:46.5]} 15... Qxf6 {[%clk 0:02:51.4]} 16. a3 {[%clk 0:02:46.4]} 16... Nd5
{[%clk 0:02:49.4]} 17. Nxd5 {[%clk 0:02:46.4]} 17... exd5 {[%clk 0:02:50]} 18.
b4 {[%clk 0:02:46.7]} 18... Be7 {[%clk 0:02:48.1]} 19. Rab1 {[%clk 0:02:41.4]}
19... Rfd8 {[%clk 0:02:46.9]} 20. Qb5 {[%clk 0:02:40.2]} 20... Qe6 {[%clk
0:02:46.3]} 21. Nd4 {[%clk 0:02:39.1]} 21... Qd7 {[%clk 0:02:46.2]} 22. Nc6
{[%clk 0:02:29.4]} 22... Bf6 {[%clk 0:02:43.4]} 23. e4 {[%clk 0:02:17.9]} 23...
d4 {[%clk 0:02:33.6]} 24. e5 {[%clk 0:02:12.3]} 24... Rac8 {[%clk 0:02:27.2]}
25. Nxd4 {[%clk 0:01:56]} 25... Bxe5 {[%clk 0:02:16.2]} 26. Qxe5 {[%clk
0:01:33]} 26... Rc4 {[%clk 0:02:11.4]} 27. Nf3 {[%clk 0:00:55.1]} 27... Qxd1+
{[%clk 0:02:09.2]} 28. Rxd1 {[%clk 0:00:54.5]} 28... Rxd1+ {[%clk 0:02:09.6]}
29. Ne1 {[%clk 0:00:53.8]} 29... Rcc1 {[%clk 0:02:10]} 30. Qe8+ {[%clk
0:00:51.9]} 30... Kh7 {[%clk 0:02:08.2]} 31. Qe4+ {[%clk 0:00:41.7]} 31... g6
{[%clk 0:02:02.7]} 32. Kf1 {[%clk 0:00:40.9]} 32... Kg7 {[%clk 0:01:58.9]} 33.
Qe5+ {[%clk 0:00:39.4]} 33... Kg8 {[%clk 0:01:58.3]} 34. g3 {[%clk 0:00:36.7]}
34... h5 {[%clk 0:01:51.9]} 35. Qb8+ {[%clk 0:00:34.6]} 35... Kg7 {[%clk
0:01:51.7]} 36. Qxa7 {[%clk 0:00:34.1]} 36... Rxe1+ {[%clk 0:01:51.8]} 37. Kg2
{[%clk 0:00:34.7]} 37... Re6 {[%clk 0:01:51.4]} 38. Qd7 {[%clk 0:00:31.7]} 38...
Rce1 {[%clk 0:01:33.7]} 39. Qd4+ {[%clk 0:00:31.1]} 39... Kg8 {[%clk 0:01:32.7]}
40. a4 {[%clk 0:00:29.6]} 40... R1e4 {[%clk 0:01:22.2]} 41. Qc3 {[%clk
0:00:29.3]} 41... Rd6 {[%clk 0:01:19.7]} 42. a5 {[%clk 0:00:24.6]} 42... bxa5
{[%clk 0:01:17.9]} 43. bxa5 {[%clk 0:00:24.8]} 43... Ree6 {[%clk 0:01:18.2]} 44.
Qa3 {[%clk 0:00:21]} 44... Ra6 {[%clk 0:01:17.8]} 45. Qc5 {[%clk 0:00:21]} 45...
Kh7 {[%clk 0:01:13]} 46. h3 {[%clk 0:00:20.8]} 46... Rf6 {[%clk 0:01:12]} 47. g4
{[%clk 0:00:21.2]} 47... hxg4 {[%clk 0:01:12.2]} 48. hxg4 {[%clk 0:00:21.6]}
48... Rfc6 {[%clk 0:01:11.6]} 49. Qd5 {[%clk 0:00:21.6]} 49... Kg7 {[%clk
0:01:11.6]} 50. Qe5+ {[%clk 0:00:22]} 50... Kg8 {[%clk 0:01:10.4]} 51. Kg3
{[%clk 0:00:22.3]} 51... Re6 {[%clk 0:01:10]} 52. Qc3 {[%clk 0:00:22.1]} 52...
Rec6 {[%clk 0:01:06.8]} 53. Qe5 {[%clk 0:00:22.3]} 53... Re6 {[%clk 0:01:06.6]}
54. Qb5 {[%clk 0:00:22.3]} 54... Kg7 {[%clk 0:01:02.1]} 55. Kh4 {[%clk
0:00:20.8]} 55... Rf6 {[%clk 0:00:51.9]} 56. Qe5 {[%clk 0:00:20.5]} 56... Kh7
{[%clk 0:00:49.2]} 57. f4 {[%clk 0:00:19.8]} 57... Rfe6 {[%clk 0:00:48.6]} 58.
Qc3 {[%clk 0:00:19.2]} 58... Rf6 {[%clk 0:00:39.8]} 59. Kg5 {[%clk 0:00:18.7]}
59... Rfd6 {[%clk 0:00:38.9]} 60. f5 {[%clk 0:00:17.8]} 60... gxf5 {[%clk
0:00:38.4]} 61. gxf5 {[%clk 0:00:18.2]} 61... Kg8 {[%clk 0:00:35.1]} 62. Qc8+
{[%clk 0:00:17.1]} 62... Kg7 {[%clk 0:00:33.9]} 63. Qc3+ {[%clk 0:00:16.9]}
63... f6+ {[%clk 0:00:31.4]} 64. Kh5 {[%clk 0:00:16.6]} 64... Kf7 {[%clk
0:00:31.3]} 65. Qc7+ {[%clk 0:00:16.7]} 65... Ke8 {[%clk 0:00:29.9]} 66. Kg6
{[%clk 0:00:17.1]} 66... Rdc6 {[%clk 0:00:29.8]} 67. Qb7 {[%clk 0:00:16.4]}
67... Kd8 {[%clk 0:00:26.9]} 68. Qb8+ {[%clk 0:00:13.8]} 68... Kd7 {[%clk
0:00:23.8]} 69. Qb5 {[%clk 0:00:13.9]} 69... Kc7 {[%clk 0:00:20.3]} 70. Kf7
{[%clk 0:00:14.2]} 70... Rd6 {[%clk 0:00:20.2]} 71. Ke7 {[%clk 0:00:14.3]} 71...
Rdc6 {[%clk 0:00:20.5]} 72. Qd5 {[%clk 0:00:13.3]} 72... Rd6 {[%clk 0:00:19.7]}
73. Qc4+ {[%clk 0:00:13.6]} 73... Rdc6 {[%clk 0:00:19.7]} 74. Qb5 {[%clk
0:00:12.6]} 74... Rd6 {[%clk 0:00:18.5]} 75. Kf7 {[%clk 0:00:13]} 75... Rdc6
{[%clk 0:00:18.1]} 76. Qb4 {[%clk 0:00:13.2]} 76... Rd6 {[%clk 0:00:16.2]} 77.
Kg6 {[%clk 0:00:12.2]} 77... Rdc6 {[%clk 0:00:15.7]} 78. Qe7+ {[%clk 0:00:12.5]}
78... Kc8 {[%clk 0:00:15.9]} 79. Qf8+ {[%clk 0:00:12.5]} 79... Kc7 {[%clk
0:00:15.7]} 80. Qe7+ {[%clk 0:00:12.8]} 80... Kc8 {[%clk 0:00:15.4]} 81. Qe1
{[%clk 0:00:12.6]} 81... Kc7 {[%clk 0:00:10.3]} 82. Qb4 {[%clk 0:00:12.7]} 82...
Rd6 {[%clk 0:00:09.2]} 83. Qc5+ {[%clk 0:00:12.6]} 83... Rdc6 {[%clk 0:00:09.3]}
84. Qb4 {[%clk 0:00:12.3]} 84... Rd6 {[%clk 0:00:08.7]} 85. Qb5 {[%clk
0:00:11.6]} 85... Rdc6 {[%clk 0:00:09]} 86. Qd5 {[%clk 0:00:11.6]} 86... Rd6
{[%clk 0:00:09.1]} 87. Qf7+ {[%clk 0:00:11.9]} 87... Kc8 {[%clk 0:00:07.7]} 88.
Qe8+ {[%clk 0:00:11.3]} 88... Kc7 {[%clk 0:00:07.1]} 89. Qe7+ {[%clk 0:00:11.5]}
89... Kc8 {[%clk 0:00:06.8]} 90. Qe1 {[%clk 0:00:10.5]} 90... Kc7 {[%clk
0:00:05.6]} 91. Qc3+ {[%clk 0:00:10.7]} 91... Rdc6 {[%clk 0:00:05]} 92. Qg3+
{[%clk 0:00:10.7]} 92... Rd6 {[%clk 0:00:05.3]} 93. Qe1 {[%clk 0:00:09.9]} 93...
Rd5 {[%clk 0:00:04.3]} 94. Qe7+ {[%clk 0:00:09.1]} 94... Kc6 {[%clk 0:00:01.7]}
95. Qe8+ {[%clk 0:00:09.6]} 95... Kc5 {[%clk 0:00:01.7]} 96. Qc8+ {[%clk
0:00:08.6]} 96... Kb5 {[%clk 0:00:01.7]} 97. Qb7+ {[%clk 0:00:09]} 97... Kxa5
{[%clk 0:00:01.9]} 98. Qxd5+ {[%clk 0:00:09.2]} 98... Kb6 {[%clk 0:00:02]} 99.
Qd6+ {[%clk 0:00:09.5]} 99... Kb7 {[%clk 0:00:02.4]} 100. Qxa6+ {[%clk
0:00:09.7]} 100... Kxa6 {[%clk 0:00:03.3]} 101. Kxf6 {[%clk 0:00:10.2]} 101...
Kb7 {[%clk 0:00:04.2]} 102. Ke7 {[%clk 0:00:10.7]} 102... Kc7 {[%clk 0:00:05.1]}
103. f6 {[%clk 0:00:11.2]} 103... Kc8 {[%clk 0:00:05.3]} 104. f7 {[%clk
0:00:11.8]} 104... Kc7 {[%clk 0:00:05.9]} 105. f8=Q {[%clk 0:00:11.9]} 105...
Kc6 {[%clk 0:00:06.8]} 106. Qf5 {[%clk 0:00:12]} 106... Kb6 {[%clk 0:00:06.6]}
107. Kd7 {[%clk 0:00:12.2]} 107... Kb7 {[%clk 0:00:07.5]} 108. Qb5+ {[%clk
0:00:12]} 108... Ka7 {[%clk 0:00:08.4]} 109. Kc7 {[%clk 0:00:12.5]} 109... Ka8
{[%clk 0:00:09.3]} 110. Qa5# {[%clk 0:00:13]} 1-0

[Event "Early-Titled-Tuesday-Blitz-September-05-2023"]
[Site "Chess.com"]
[Date "2023.09.05"]
[Round "11"]
[White "amintabatabaei"]
[Black "Sibelephant"]
[Result "1/2-1/2"]
[WhiteElo "3024"]
[BlackElo "3127"]
[TimeControl "180+1"]
[EndTime "10:08:46 PDT"]
[Termination "Game drawn by 50-move rule"]

1. c4 {[%clk 0:03:00.9]} 1... e5 {[%clk 0:02:58.1]} 2. Nc3 {[%clk 0:02:59.3]}
2... Nf6 {[%clk 0:02:57.2]} 3. Nf3 {[%clk 0:02:58.9]} 3... Nc6 {[%clk
0:02:57.5]} 4. g3 {[%clk 0:02:58]} 4... g6 {[%clk 0:02:53.8]} 5. Bg2 {[%clk
0:02:57.2]} 5... Bg7 {[%clk 0:02:54.3]} 6. O-O {[%clk 0:02:56.9]} 6... O-O
{[%clk 0:02:54.4]} 7. d3 {[%clk 0:02:56.3]} 7... d6 {[%clk 0:02:53.9]} 8. Rb1
{[%clk 0:02:54.3]} 8... a5 {[%clk 0:02:51.8]} 9. a3 {[%clk 0:02:54.5]} 9... Re8
{[%clk 0:02:52.2]} 10. Nd2 {[%clk 0:02:52.6]} 10... Nd4 {[%clk 0:02:51]} 11. b4
{[%clk 0:02:51]} 11... axb4 {[%clk 0:02:50.6]} 12. axb4 {[%clk 0:02:51.9]} 12...
c6 {[%clk 0:02:46]} 13. b5 {[%clk 0:02:52]} 13... d5 {[%clk 0:02:43.6]} 14. e3
{[%clk 0:02:44.5]} 14... Bg4 {[%clk 0:02:21.9]} 15. f3 {[%clk 0:02:41.1]} 15...
Bf5 {[%clk 0:02:22.1]} 16. exd4 {[%clk 0:02:31.5]} 16... exd4 {[%clk 0:02:18.8]}
17. Nce4 {[%clk 0:02:17.5]} 17... dxe4 {[%clk 0:02:18]} 18. fxe4 {[%clk
0:02:18.4]} 18... Be6 {[%clk 0:02:15.2]} 19. bxc6 {[%clk 0:02:07.7]} 19... bxc6
{[%clk 0:02:15.2]} 20. h3 {[%clk 0:01:56.6]} 20... Nd7 {[%clk 0:01:47.4]} 21.
Nf3 {[%clk 0:01:52.3]} 21... Ra2 {[%clk 0:01:46.7]} 22. Ng5 {[%clk 0:01:43.8]}
22... Qc7 {[%clk 0:01:01.4]} 23. Bf4 {[%clk 0:01:21.6]} 23... Be5 {[%clk
0:00:54.8]} 24. Qf3 {[%clk 0:01:08.2]} 24... h6 {[%clk 0:00:23.2]} 25. Nxe6
{[%clk 0:01:05]} 25... Rxe6 {[%clk 0:00:23.4]} 26. Bxh6 {[%clk 0:01:03.5]} 26...
Rf6 {[%clk 0:00:22.5]} 27. Bf4 {[%clk 0:00:45.4]} 27... Ra3 {[%clk 0:00:18.3]}
28. Bxe5 {[%clk 0:00:20.6]} 28... Qxe5 {[%clk 0:00:17.1]} 29. Qg4 {[%clk
0:00:21.4]} 29... Rxf1+ {[%clk 0:00:12.6]} 30. Rxf1 {[%clk 0:00:22.3]} 30... Qe7
{[%clk 0:00:09.5]} 31. e5 {[%clk 0:00:19.1]} 31... Nxe5 {[%clk 0:00:08.6]} 32.
Qxd4 {[%clk 0:00:17.9]} 32... Rxd3 {[%clk 0:00:08.8]} 33. Qf2 {[%clk 0:00:14.8]}
33... Rc3 {[%clk 0:00:07]} 34. Kh1 {[%clk 0:00:11.8]} 34... Rxc4 {[%clk
0:00:06.9]} 35. Re1 {[%clk 0:00:12.4]} 35... Nd3 {[%clk 0:00:05.1]} 36. Rxe7
{[%clk 0:00:10.5]} 36... Nxf2+ {[%clk 0:00:05.3]} 37. Kh2 {[%clk 0:00:10.4]}
37... Nd3 {[%clk 0:00:05]} 38. Bf1 {[%clk 0:00:09.4]} 38... Rc2+ {[%clk
0:00:05.1]} 39. Kg1 {[%clk 0:00:10]} 39... Nb4 {[%clk 0:00:04.5]} 40. h4 {[%clk
0:00:09.1]} 40... Kg7 {[%clk 0:00:04.7]} 41. Rc7 {[%clk 0:00:08.5]} 41... Nd5
{[%clk 0:00:04.6]} 42. Rc8 {[%clk 0:00:07.7]} 42... Rc3 {[%clk 0:00:04.9]} 43.
Kh2 {[%clk 0:00:07.5]} 43... Ne3 {[%clk 0:00:05]} 44. Ba6 {[%clk 0:00:06.2]}
44... Nf5 {[%clk 0:00:04.6]} 45. Bb7 {[%clk 0:00:03.7]} 45... Rxg3 {[%clk
0:00:04.8]} 46. Rxc6 {[%clk 0:00:03.8]} 46... Rg4 {[%clk 0:00:04.8]} 47. h5
{[%clk 0:00:03.3]} 47... Rh4+ {[%clk 0:00:05.2]} 48. Kg2 {[%clk 0:00:03.7]}
48... Rxh5 {[%clk 0:00:06.1]} 49. Rc7 {[%clk 0:00:04.3]} 49... Rg5+ {[%clk
0:00:06.2]} 50. Kf2 {[%clk 0:00:04.5]} 50... Nd6 {[%clk 0:00:06.5]} 51. Ba6
{[%clk 0:00:04.2]} 51... Ra5 {[%clk 0:00:06.3]} 52. Bd3 {[%clk 0:00:04.7]} 52...
Rd5 {[%clk 0:00:05.2]} 53. Bc2 {[%clk 0:00:04.5]} 53... Nf5 {[%clk 0:00:04.6]}
54. Bb3 {[%clk 0:00:03.6]} 54... Rd2+ {[%clk 0:00:02.6]} 55. Ke1 {[%clk
0:00:04.1]} 55... Rb2 {[%clk 0:00:02.6]} 56. Bxf7 {[%clk 0:00:01.8]} 56... Kf6
{[%clk 0:00:02.8]} 57. Bc4 {[%clk 0:00:02.1]} 57... g5 {[%clk 0:00:02.4]} 58.
Rc6+ {[%clk 0:00:02.3]} 58... Ke5 {[%clk 0:00:02.6]} 59. Rc5+ {[%clk 0:00:02.8]}
59... Kf4 {[%clk 0:00:03.1]} 60. Be6 {[%clk 0:00:02.6]} 60... Nd4 {[%clk
0:00:03.2]} 61. Bc8 {[%clk 0:00:02.7]} 61... g4 {[%clk 0:00:02.2]} 62. Bxg4
{[%clk 0:00:02.1]} 62... Kxg4 {[%clk 0:00:03.1]} 63. Rc4 {[%clk 0:00:01.6]}
63... Re2+ {[%clk 0:00:03.1]} 64. Kd1 {[%clk 0:00:01.9]} 64... Re4 {[%clk
0:00:03.8]} 65. Rc8 {[%clk 0:00:02.3]} 65... Kf3 {[%clk 0:00:02.8]} 66. Rh8
{[%clk 0:00:02.6]} 66... Ke3 {[%clk 0:00:02.5]} 67. Rh3+ {[%clk 0:00:03.2]}
67... Nf3 {[%clk 0:00:03.1]} 68. Kc2 {[%clk 0:00:04]} 68... Rc4+ {[%clk
0:00:03.7]} 69. Kb3 {[%clk 0:00:04.4]} 69... Rc8 {[%clk 0:00:04.5]} 70. Ka3
{[%clk 0:00:04.3]} 70... Rb8 {[%clk 0:00:04.4]} 71. Ka4 {[%clk 0:00:04.8]} 71...
Rb1 {[%clk 0:00:04.4]} 72. Ka5 {[%clk 0:00:05.2]} 72... Ke4 {[%clk 0:00:05]} 73.
Ka4 {[%clk 0:00:05.4]} 73... Nd4 {[%clk 0:00:05.2]} 74. Rc3 {[%clk 0:00:05.2]}
74... Kd5 {[%clk 0:00:05.5]} 75. Rc8 {[%clk 0:00:05.1]} 75... Nc6 {[%clk
0:00:04.6]} 76. Rh8 {[%clk 0:00:05]} 76... Kc4 {[%clk 0:00:04]} 77. Rh4+ {[%clk
0:00:04.1]} 77... Nd4 {[%clk 0:00:04.7]} 78. Ka5 {[%clk 0:00:05]} 78... Rb2
{[%clk 0:00:03.8]} 79. Ka6 {[%clk 0:00:05.2]} 79... Kc5 {[%clk 0:00:03.7]} 80.
Rh5+ {[%clk 0:00:05.1]} 80... Kd6 {[%clk 0:00:03.9]} 81. Rh6+ {[%clk 0:00:05.4]}
81... Ne6 {[%clk 0:00:03.2]} 82. Rg6 {[%clk 0:00:05.8]} 82... Kd5 {[%clk
0:00:03.3]} 83. Rh6 {[%clk 0:00:05.4]} 83... Nc5+ {[%clk 0:00:03.5]} 84. Ka5
{[%clk 0:00:05.6]} 84... Ne4 {[%clk 0:00:03.6]} 85. Rh5+ {[%clk 0:00:05.7]}
85... Kc4 {[%clk 0:00:03.3]} 86. Rh4 {[%clk 0:00:05.2]} 86... Rb5+ {[%clk
0:00:03]} 87. Ka4 {[%clk 0:00:03.4]} 87... Re5 {[%clk 0:00:03.9]} 88. Ka3 {[%clk
0:00:02.5]} 88... Kc3 {[%clk 0:00:03.7]} 89. Rh3+ {[%clk 0:00:03.1]} 89... Kc4
{[%clk 0:00:04.2]} 90. Rh4 {[%clk 0:00:03.6]} 90... Re8 {[%clk 0:00:03.8]} 91.
Kb2 {[%clk 0:00:03.6]} 91... Kd4 {[%clk 0:00:02.6]} 92. Kb3 {[%clk 0:00:03.7]}
92... Rc8 {[%clk 0:00:02.6]} 93. Kb4 {[%clk 0:00:03.6]} 93... Rb8+ {[%clk
0:00:02.9]} 94. Ka4 {[%clk 0:00:04.1]} 94... Rb7 {[%clk 0:00:03]} 95. Ka5 {[%clk
0:00:04.4]} 95... Re7 {[%clk 0:00:02.9]} 96. Kb4 {[%clk 0:00:04.5]} 96... Kd3
{[%clk 0:00:03]} 97. Kb3 {[%clk 0:00:04.3]} 97... Rb7+ {[%clk 0:00:02.7]} 98.
Ka3 {[%clk 0:00:04.6]} 98... Nc5 {[%clk 0:00:02.8]} 99. Rh3+ {[%clk 0:00:05]}
99... Kc4 {[%clk 0:00:03.3]} 100. Rh4+ {[%clk 0:00:05.6]} 100... Kc3 {[%clk
0:00:04]} 101. Rh3+ {[%clk 0:00:05.2]} 101... Nd3 {[%clk 0:00:04.6]} 102. Ka4
{[%clk 0:00:05.7]} 102... Rb1 {[%clk 0:00:03.9]} 103. Ka5 {[%clk 0:00:06.1]}
103... Kc4 {[%clk 0:00:04.3]} 104. Rh4+ {[%clk 0:00:05.5]} 104... Kd5 {[%clk
0:00:04.6]} 105. Rh5+ {[%clk 0:00:05.8]} 105... Ne5 {[%clk 0:00:05.4]} 106. Ka4
{[%clk 0:00:06]} 106... Re1 {[%clk 0:00:05.3]} 107. Kb5 {[%clk 0:00:06.1]}
107... Re2 {[%clk 0:00:05.3]} 108. Ka5 {[%clk 0:00:06]} 108... Kc5 {[%clk
0:00:04.9]} 109. Ka6 {[%clk 0:00:06.5]} 109... Re3 {[%clk 0:00:03.5]} 110. Kb7
{[%clk 0:00:06.4]} 110... Kd6 {[%clk 0:00:03]} 111. Ka6 {[%clk 0:00:05.8]}
111... Kc6 {[%clk 0:00:02.9]} 112. Rh6+ {[%clk 0:00:05.7]} 112... Kc5 {[%clk
0:00:03.4]} 1/2-1/2